[Event "NJSK 2026 Jeugd C"]
[Site "Helmond, Netherlands"]
[Date "2026.04.27"]
[Round "3.7"]
[White "Uitermark, Imre"]
[Black "Lalkota, Sai Pranav Tejas"]
[Result "1-0"]
[TimeControl "90min/40moves + 30sec/move"]
[WhiteTitle "-"]
[BlackTitle "-"]
[WhiteFideId "40105199"]
[BlackFideId "1087690"]
[WhiteElo "1957"]
[BlackElo "1830"]

1. e4 {[%clk 01:30:58]} {[%emt 00:00:02]} e6 {[%clk 01:28:55]} {[%emt
00:02:05]} 2. d4 {[%clk 01:31:25]} {[%emt 00:00:03]} d5 {[%clk 01:29:22]}
{[%emt 00:00:04]} 3. Nd2 {[%clk 01:31:51]} {[%emt 00:00:03]} dxe4 {[%clk
01:29:47]} {[%emt 00:00:05]} 4. Nxe4 {[%clk 01:32:17]} {[%emt 00:00:04]} Nd7
{[%clk 01:30:13]} {[%emt 00:00:05]} 5. Nf3 {[%clk 01:32:44]} {[%emt 00:00:03]}
Ngf6 {[%clk 01:30:36]} {[%emt 00:00:07]} 6. Nxf6+ {[%clk 01:33:12]} {[%emt
00:00:01]} Nxf6 {[%clk 01:30:56]} {[%emt 00:00:09]} 7. Bd3 {[%clk 01:33:36]}
{[%emt 00:00:06]} Bd6 {[%clk 01:31:17]} {[%emt 00:00:09]} 8. c3 {[%clk
01:32:21]} {[%emt 00:01:45]} h6 {[%clk 01:31:37]} {[%emt 00:00:10]} 9. Qe2
{[%clk 01:32:19]} {[%emt 00:00:32]} Bd7 {[%clk 01:29:48]} {[%emt 00:02:19]} 10.
Ne5 {[%clk 01:31:09]} {[%emt 00:01:40]} Bxe5 {[%clk 01:29:51]} {[%emt
00:00:27]} 11. Qxe5 {[%clk 01:31:25]} {[%emt 00:00:14]} Bc6 {[%clk 01:30:08]}
{[%emt 00:00:13]} 12. O-O {[%clk 01:29:20]} {[%emt 00:02:35]} O-O {[%clk
01:29:37]} {[%emt 00:01:01]} 13. Bd2 {[%clk 01:25:43]} {[%emt 00:04:07]} Qd6
{[%clk 01:27:50]} {[%emt 00:02:17]} 14. Bxh6 {[%clk 01:24:04]} {[%emt
00:02:08]} Qxe5 {[%clk 01:24:24]} {[%emt 00:03:58]} 15. dxe5 {[%clk 01:24:18]}
{[%emt 00:00:16]} Nd7 {[%clk 01:24:45]} {[%emt 00:00:08]} 16. Bf4 {[%clk
01:24:32]} {[%emt 00:00:16]} Nc5 {[%clk 01:25:06]} {[%emt 00:00:10]} 17. Bc2
{[%clk 01:24:35]} {[%emt 00:00:27]} Rad8 {[%clk 01:24:48]} {[%emt 00:00:48]} 18.
Rad1 {[%clk 01:24:35]} {[%emt 00:00:29]} Na4 {[%clk 01:24:38]} {[%emt
00:00:41]} 19. Bxa4 {[%clk 01:22:37]} {[%emt 00:02:28]} Bxa4 {[%clk 01:25:03]}
{[%emt 00:00:05]} 20. b3 {[%clk 01:23:04]} {[%emt 00:00:03]} Bc6 {[%clk
01:24:53]} {[%emt 00:00:40]} 21. c4 {[%clk 01:17:56]} {[%emt 00:05:38]} b5
{[%clk 01:20:55]} {[%emt 00:04:28]} 22. cxb5 {[%clk 01:12:59]} {[%emt
00:05:27]} Bxb5 {[%clk 01:21:14]} {[%emt 00:00:11]} 23. Rfe1 {[%clk 01:13:12]}
{[%emt 00:00:16]} Be2 {[%clk 01:19:30]} {[%emt 00:02:14]} 24. Rc1 {[%clk
01:13:39]} {[%emt 00:00:04]} Bb5 {[%clk 01:17:16]} {[%emt 00:02:42]} 25. Rxc7
{[%clk 01:12:36]} {[%emt 00:01:34]} Rd7 {[%clk 01:17:22]} {[%emt 00:00:24]} 26.
Rxd7 {[%clk 01:12:06]} {[%emt 00:01:00]} Bxd7 {[%clk 01:17:45]} {[%emt
00:00:07]} 27. Rc1 {[%clk 01:11:23]} {[%emt 00:01:13]} Rc8 {[%clk 01:17:55]}
{[%emt 00:00:20]} 28. Rxc8+ {[%clk 01:10:57]} {[%emt 00:00:56]} Bxc8 {[%clk
01:18:18]} {[%emt 00:00:07]} 29. Be3 {[%clk 01:11:21]} {[%emt 00:00:07]} a6
{[%clk 01:18:41]} {[%emt 00:00:06]} 30. Kf1 {[%clk 01:10:38]} {[%emt 00:01:13]}
Kf8 {[%clk 01:18:49]} {[%emt 00:00:22]} 31. Ke2 {[%clk 01:11:05]} {[%emt
00:00:04]} Ke7 {[%clk 01:19:06]} {[%emt 00:00:12]} 32. Kd3 {[%clk 01:11:32]}
{[%emt 00:00:04]} Bb7 {[%clk 01:19:21]} {[%emt 00:00:15]} 33. g3 {[%clk
01:09:03]} {[%emt 00:02:58]} Bf3 {[%clk 01:19:16]} {[%emt 00:00:35]} 34. Kc4
{[%clk 01:08:18]} {[%emt 00:01:17]} Kd7 {[%clk 01:19:37]} {[%emt 00:00:07]} 35.
Kc5 {[%clk 01:08:24]} {[%emt 00:00:23]} Kc7 {[%clk 01:19:59]} {[%emt 00:00:08]}
36. Bd2 {[%clk 01:08:37]} {[%emt 00:00:18]} Be4 {[%clk 01:15:58]} {[%emt
00:04:32]} 37. Ba5+ {[%clk 01:08:30]} {[%emt 00:00:37]} Kb7 {[%clk 01:14:43]}
{[%emt 00:01:44]} 38. Kd6 {[%clk 01:08:32]} {[%emt 00:00:28]} g5 {[%clk
01:14:47]} {[%emt 00:00:26]} 39. h4 {[%clk 01:05:48]} {[%emt 00:03:14]} gxh4
{[%clk 01:13:57]} {[%emt 00:01:20]} 40. gxh4 {[%clk 01:06:01]} {[%emt
00:00:17]} Bg6 {[%clk 01:14:21]} {[%emt 00:00:07]} 41. Ke7 {[%clk 00:58:11]}
{[%emt 00:08:19]} Kc6 {[%clk 01:14:46]} {[%emt 00:00:05]} 42. Kf6 {[%clk
00:58:37]} {[%emt 00:00:04]} Kd5 {[%clk 01:15:08]} {[%emt 00:00:08]} 43. Bc3
{[%clk 00:58:30]} {[%emt 00:00:37]} Ke4 {[%clk 01:15:28]} {[%emt 00:00:10]} 44.
Kg5 {[%clk 00:58:52]} {[%emt 00:00:06]} Kf3 {[%clk 01:15:54]} {[%emt 00:00:06]}
45. h5 {[%clk 00:59:14]} {[%emt 00:00:08]} Bf5 {[%clk 01:16:12]} {[%emt
00:00:12]} 46. h6 {[%clk 00:58:18]} {[%emt 00:01:26]} Kxf2 {[%clk 01:16:34]}
{[%emt 00:00:08]} 47. Kf6 {[%clk 00:58:43]} {[%emt 00:00:04]} Ke3 {[%clk
01:15:38]} {[%emt 00:01:28]} 48. Kg7 {[%clk 00:58:59]} {[%emt 00:00:13]} Kd3
{[%clk 01:16:00]} {[%emt 00:00:08]} 49. Ba1 {[%clk 00:59:19]} {[%emt 00:00:10]}
Kc2 {[%clk 01:16:24]} {[%emt 00:00:06]} 50. h7 {[%clk 00:53:38]} {[%emt
00:06:11]} Bxh7 {[%clk 01:16:49]} {[%emt 00:00:05]} 51. Kxh7 {[%clk 00:54:07]}
{[%emt 00:00:01]} Kb1 {[%clk 01:17:12]} {[%emt 00:00:07]} 52. Bd4 {[%clk
00:54:33]} {[%emt 00:00:04]} Kxa2 {[%clk 01:17:36]} {[%emt 00:00:07]} 53. Kg7
{[%clk 00:55:00]} {[%emt 00:00:02]} Kxb3 {[%clk 01:18:00]} {[%emt 00:00:07]} 54.
Kxf7 {[%clk 00:55:25]} {[%emt 00:00:04]} Kc4 {[%clk 01:18:26]} {[%emt
00:00:04]} 55. Ba1 {[%clk 00:55:52]} {[%emt 00:00:03]} Kd5 {[%clk 01:18:50]}
{[%emt 00:00:06]} 56. Kf6 {[%clk 00:56:16]} {[%emt 00:00:06]} a5 {[%clk
01:19:15]} {[%emt 00:00:06]} 57. Ke7 {[%clk 00:56:39]} {[%emt 00:00:06]} a4
{[%clk 01:19:39]} {[%emt 00:00:06]} 58. Kf6 {[%clk 00:57:06]} {[%emt 00:00:03]}
1-0

[Event "NJSK 2026 Jeugd C"]
[Site "Helmond, Netherlands"]
[Date "2026.04.27"]
[Round "3.8"]
[White "Shaikh, Rushaan"]
[Black "Ngangbam, Chingthang"]
[Result "1/2-1/2"]
[TimeControl "90min/40moves + 30sec/move"]
[WhiteTitle "-"]
[BlackTitle "-"]
[WhiteFideId "40113604"]
[BlackFideId "1086510"]
[WhiteElo "1842"]
[BlackElo "1937"]

1. d4 {[%clk 01:30:57]} {[%emt 00:00:02]} Nf6 {[%clk 01:30:51]} {[%emt
00:00:10]} 2. Bg5 {[%clk 01:31:22]} {[%emt 00:00:05]} d5 {[%clk 01:31:14]}
{[%emt 00:00:06]} 3. Bxf6 {[%clk 01:31:47]} {[%emt 00:00:09]} exf6 {[%clk
01:31:39]} {[%emt 00:00:01]} 4. e3 {[%clk 01:32:06]} {[%emt 00:00:12]} Bd6
{[%clk 01:32:01]} {[%emt 00:00:08]} 5. c4 {[%clk 01:32:28]} {[%emt 00:00:08]}
dxc4 {[%clk 01:32:18]} {[%emt 00:00:13]} 6. Bxc4 {[%clk 01:32:50]} {[%emt
00:00:08]} O-O {[%clk 01:32:19]} {[%emt 00:00:29]} 7. Nf3 {[%clk 01:33:10]}
{[%emt 00:00:10]} c6 {[%clk 01:31:38]} {[%emt 00:01:11]} 8. O-O {[%clk
01:32:44]} {[%emt 00:00:55]} Nd7 {[%clk 01:30:51]} {[%emt 00:01:17]} 9. Nc3
{[%clk 01:31:57]} {[%emt 00:01:17]} f5 {[%clk 01:29:44]} {[%emt 00:01:39]} 10.
Qc2 {[%clk 01:30:17]} {[%emt 00:02:09]} Qc7 {[%clk 01:25:49]} {[%emt 00:04:25]}
11. Bd3 {[%clk 01:28:47]} {[%emt 00:01:59]} g6 {[%clk 01:22:22]} {[%emt
00:03:58]} 12. Rac1 {[%clk 01:27:28]} {[%emt 00:01:49]} a6 {[%clk 01:19:53]}
{[%emt 00:02:59]} 13. Na4 {[%clk 01:23:03]} {[%emt 00:04:55]} Nf6 {[%clk
01:17:29]} {[%emt 00:02:53]} 14. h3 {[%clk 01:13:37]} {[%emt 00:09:56]} Be6
{[%clk 01:03:23]} {[%emt 00:14:36]} 15. Bc4 {[%clk 01:08:56]} {[%emt 00:05:12]}
Bxc4 {[%clk 00:51:03]} {[%emt 00:12:49]} 16. Qxc4 {[%clk 01:09:03]} {[%emt
00:00:23]} Ne4 {[%clk 00:49:49]} {[%emt 00:01:45]} 17. Nc5 {[%clk 01:06:33]}
{[%emt 00:02:58]} b5 {[%clk 00:45:59]} {[%emt 00:04:22]} 18. Qc2 {[%clk
01:04:52]} {[%emt 00:02:11]} Bxc5 {[%clk 00:44:50]} {[%emt 00:01:39]} 19. dxc5
{[%clk 01:04:24]} {[%emt 00:00:57]} Rad8 {[%clk 00:45:12]} {[%emt 00:00:08]} 20.
Rfd1 {[%clk 01:03:20]} {[%emt 00:01:34]} Qe7 {[%clk 00:42:05]} {[%emt
00:03:38]} 21. Nd2 {[%clk 00:50:29]} {[%emt 00:13:20]} a5 {[%clk 00:32:08]}
{[%emt 00:10:28]} 22. Nxe4 {[%clk 00:48:42]} {[%emt 00:02:16]} fxe4 {[%clk
00:32:16]} {[%emt 00:00:23]} 23. a3 {[%clk 00:48:30]} {[%emt 00:00:42]} Qe5
{[%clk 00:25:38]} {[%emt 00:07:07]} 24. Rd6 {[%clk 00:42:52]} {[%emt 00:06:09]}
Rxd6 {[%clk 00:19:56]} {[%emt 00:06:12]} 25. cxd6 {[%clk 00:43:19]} {[%emt
00:00:03]} Rd8 {[%clk 00:20:18]} {[%emt 00:00:08]} 26. Qxc6 {[%clk 00:41:08]}
{[%emt 00:02:41]} Rxd6 {[%clk 00:20:29]} {[%emt 00:00:18]} 27. Qa8+ {[%clk
00:40:42]} {[%emt 00:00:57]} Kg7 {[%clk 00:20:46]} {[%emt 00:00:13]} 28. Qxa5
{[%clk 00:40:52]} {[%emt 00:00:20]} Qxb2 {[%clk 00:20:48]} {[%emt 00:00:28]} 29.
Qc3+ {[%clk 00:41:15]} {[%emt 00:00:07]} Qxc3 {[%clk 00:21:11]} {[%emt
00:00:07]} 30. Rxc3 {[%clk 00:41:43]} {[%emt 00:00:02]} Rd2 {[%clk 00:19:27]}
{[%emt 00:02:13]} 31. Rb3 {[%clk 00:40:25]} {[%emt 00:01:49]} Rd5 {[%clk
00:15:56]} {[%emt 00:04:01]} 32. Rb4 {[%clk 00:36:29]} {[%emt 00:04:26]} f5
{[%clk 00:16:19]} {[%emt 00:00:06]} 33. a4 {[%clk 00:36:48]} {[%emt 00:00:11]}
bxa4 {[%clk 00:16:45]} {[%emt 00:00:05]} 34. Rxa4 {[%clk 00:37:17]} {[%emt
00:00:01]} Rd2 {[%clk 00:16:35]} {[%emt 00:00:40]} 35. Ra7+ {[%clk 00:37:28]}
{[%emt 00:00:19]} Kh6 {[%clk 00:16:57]} {[%emt 00:00:08]} 36. Re7 {[%clk
00:35:24]} {[%emt 00:02:33]} g5 {[%clk 00:16:07]} {[%emt 00:01:21]} 37. g4
{[%clk 00:35:17]} {[%emt 00:00:37]} Kg6 {[%clk 00:10:39]} {[%emt 00:05:58]} 38.
Re6+ {[%clk 00:34:31]} {[%emt 00:01:15]} Kf7 {[%clk 00:11:02]} {[%emt
00:00:07]} 39. gxf5 {[%clk 00:34:59]} {[%emt 00:00:03]} Rd5 {[%clk 00:11:17]}
{[%emt 00:00:15]} 40. Rxe4 {[%clk 00:34:56]} {[%emt 00:00:33]} Rxf5 {[%clk
00:11:43]} {[%emt 00:00:03]} 41. Kg2 {[%clk 00:34:45]} {[%emt 00:00:41]} Kf6
{[%clk 00:10:54]} {[%emt 00:01:18]} 42. f3 {[%clk 00:34:44]} {[%emt 00:00:32]}
Ra5 {[%clk 00:10:40]} {[%emt 00:00:44]} 43. h4 {[%clk 00:31:50]} {[%emt
00:03:24]} h6 {[%clk 00:10:15]} {[%emt 00:00:55]} 44. hxg5+ {[%clk 00:29:44]}
{[%emt 00:02:36]} hxg5 {[%clk 00:10:37]} {[%emt 00:00:08]} 45. Rc4 {[%clk
00:29:39]} {[%emt 00:00:35]} Ra1 {[%clk 00:08:44]} {[%emt 00:02:24]} 46. Rc6+
{[%clk 00:28:26]} {[%emt 00:01:42]} Kf5 {[%clk 00:06:25]} {[%emt 00:02:49]} 47.
e4+ {[%clk 00:27:44]} {[%emt 00:01:12]} Kf4 {[%clk 00:05:32]} {[%emt 00:01:24]}
48. Rf6+ {[%clk 00:27:55]} {[%emt 00:00:17]} Ke3 {[%clk 00:05:35]} {[%emt
00:00:28]} 49. Rf5 {[%clk 00:27:19]} {[%emt 00:01:06]} g4 {[%clk 00:05:40]}
{[%emt 00:00:26]} 50. e5 {[%clk 00:26:46]} {[%emt 00:01:03]} gxf3+ {[%clk
00:05:44]} {[%emt 00:00:25]} 51. Rxf3+ {[%clk 00:27:14]} {[%emt 00:00:03]} Kd4
{[%clk 00:05:26]} {[%emt 00:00:48]} 52. Rf5 {[%clk 00:25:21]} {[%emt 00:02:22]}
Re1 {[%clk 00:05:39]} {[%emt 00:00:17]} 53. Kf3 {[%clk 00:25:40]} {[%emt
00:00:11]} Rxe5 {[%clk 00:05:59]} {[%emt 00:00:10]} 54. Rxe5 {[%clk 00:25:58]}
{[%emt 00:00:12]} Kxe5 {[%clk 00:05:54]} {[%emt 00:00:06]} 55. Ke4+ {[%emt
00:00:18]} 1/2-1/2

[Event "NJSK 2026 Jeugd C"]
[Site "Helmond, Netherlands"]
[Date "2026.04.27"]
[Round "3.9"]
[White "Brorens, Victor"]
[Black "Okita, Ryoga"]
[Result "0-1"]
[TimeControl "90min/40moves + 30sec/move"]
[WhiteTitle "-"]
[BlackTitle "-"]
[WhiteFideId "1095307"]
[BlackFideId "1090666"]
[WhiteElo "1911"]
[BlackElo "1812"]

1. e4 {[%clk 01:30:59]} c5 {[%clk 01:30:53]} {[%emt 00:00:07]} 2. c3 {[%clk
01:31:28]} {[%emt 00:00:01]} d5 {[%clk 01:31:05]} {[%emt 00:00:18]} 3. exd5
{[%clk 01:31:55]} {[%emt 00:00:04]} Qxd5 {[%clk 01:31:27]} {[%emt 00:00:06]} 4.
d4 {[%clk 01:32:11]} {[%emt 00:00:15]} Nc6 {[%clk 01:31:49]} {[%emt 00:00:08]}
5. Nf3 {[%clk 01:32:33]} {[%emt 00:00:07]} Bf5 {[%clk 01:32:10]} {[%emt
00:00:09]} 6. Be2 {[%clk 01:32:36]} {[%emt 00:00:27]} cxd4 {[%clk 01:32:23]}
{[%emt 00:00:17]} 7. cxd4 {[%clk 01:32:57]} {[%emt 00:00:10]} Bxb1 {[%clk
01:32:43]} {[%emt 00:00:10]} 8. Rxb1 {[%clk 01:33:20]} {[%emt 00:00:07]} e6
{[%clk 01:33:02]} {[%emt 00:00:11]} 9. a3 {[%clk 01:33:33]} {[%emt 00:00:17]}
Nf6 {[%clk 01:32:54]} {[%emt 00:00:37]} 10. O-O {[%clk 01:31:56]} {[%emt
00:02:07]} Be7 {[%clk 01:32:51]} {[%emt 00:00:33]} 11. Qc2 {[%clk 01:28:22]}
{[%emt 00:04:05]} O-O {[%clk 01:32:16]} {[%emt 00:01:06]} 12. Rd1 {[%clk
01:25:52]} {[%emt 00:02:59]} Rac8 {[%clk 01:31:16]} {[%emt 00:01:31]} 13. Bc4
{[%clk 01:23:18]} {[%emt 00:03:04]} Qd6 {[%clk 01:31:35]} {[%emt 00:00:11]} 14.
Qe2 {[%clk 01:22:32]} {[%emt 00:01:15]} Rfd8 {[%clk 01:28:09]} {[%emt
00:03:57]} 15. Bg5 {[%clk 01:17:40]} {[%emt 00:05:21]} Nd5 {[%clk 01:26:12]}
{[%emt 00:02:27]} 16. Bxe7 {[%clk 01:15:52]} {[%emt 00:02:18]} Ncxe7 {[%clk
01:24:18]} {[%emt 00:02:24]} 17. Rbc1 {[%clk 01:13:48]} {[%emt 00:02:35]} Nc6
{[%clk 01:21:30]} {[%emt 00:03:18]} 18. Bxd5 {[%clk 01:12:45]} {[%emt
00:01:32]} Qxd5 {[%clk 01:21:31]} {[%emt 00:00:29]} 19. Kh1 {[%clk 01:08:30]}
{[%emt 00:04:45]} Rc7 {[%clk 01:19:09]} {[%emt 00:02:52]} 20. Rc5 {[%clk
01:07:58]} {[%emt 00:01:02]} Qd6 {[%clk 01:18:55]} {[%emt 00:00:44]} 21. g3
{[%clk 00:58:50]} {[%emt 00:09:38]} Rcd7 {[%clk 01:17:52]} {[%emt 00:01:33]} 22.
Qe4 {[%clk 00:55:36]} {[%emt 00:03:44]} f5 {[%clk 01:11:57]} {[%emt 00:06:26]}
23. Qc2 {[%clk 00:45:32]} {[%emt 00:10:34]} h6 {[%clk 01:02:41]} {[%emt
00:09:45]} 24. Qc4 {[%clk 00:43:21]} {[%emt 00:02:40]} Kh7 {[%clk 00:56:16]}
{[%emt 00:06:56]} 25. Rd2 {[%clk 00:37:59]} {[%emt 00:05:52]} Qe7 {[%clk
00:48:21]} {[%emt 00:08:25]} 26. b4 {[%clk 00:32:23]} {[%emt 00:06:07]} Qf6
{[%clk 00:47:18]} {[%emt 00:01:32]} 27. Ne5 {[%clk 00:28:32]} {[%emt 00:04:20]}
Rxd4 {[%clk 00:43:36]} {[%emt 00:04:13]} 28. Rxd4 {[%clk 00:27:41]} {[%emt
00:01:21]} Rxd4 {[%clk 00:42:13]} {[%emt 00:01:54]} 29. Qe2 {[%clk 00:26:58]}
{[%emt 00:01:11]} Re4 {[%clk 00:40:12]} {[%emt 00:02:32]} 30. Qb5 {[%clk
00:25:48]} {[%emt 00:01:39]} Nxe5 {[%clk 00:36:34]} {[%emt 00:04:09]} 31. Qxb7
{[%clk 00:25:58]} {[%emt 00:00:20]} Nd3 {[%clk 00:36:52]} {[%emt 00:00:12]} 32.
Rc7 {[%clk 00:25:47]} {[%emt 00:00:41]} Nxf2+ {[%clk 00:37:06]} {[%emt
00:00:17]} 33. Kg2 {[%clk 00:26:07]} {[%emt 00:00:09]} Ng4 {[%clk 00:37:25]}
{[%emt 00:00:11]} 34. Qxa7 {[%clk 00:25:41]} {[%emt 00:00:55]} Re2+ {[%clk
00:37:32]} {[%emt 00:00:23]} 35. Kf1 {[%clk 00:25:43]} {[%emt 00:00:29]} Rf2+
{[%clk 00:37:09]} {[%emt 00:00:53]} 0-1

[Event "NJSK 2026 Jeugd C"]
[Site "Helmond, Netherlands"]
[Date "2026.04.27"]
[Round "3.10"]
[White "Mendelsohn, Saffran"]
[Black "Nadrshin, Oleg"]
[Result "0-1"]
[TimeControl "90min/40moves + 30sec/move"]
[WhiteTitle "-"]
[BlackTitle "-"]
[WhiteFideId "40108996"]
[BlackFideId "40111873"]
[WhiteElo "1767"]
[BlackElo "1894"]

1. e4 {[%clk 01:30:58]} {[%emt 00:00:01]} c5 {[%clk 01:30:54]} {[%emt
00:00:06]} 2. Nf3 {[%clk 01:31:23]} {[%emt 00:00:06]} Nc6 {[%clk 01:31:19]}
{[%emt 00:00:05]} 3. Bb5 {[%clk 01:30:47]} {[%emt 00:01:05]} Nf6 {[%clk
01:31:42]} {[%emt 00:00:08]} 4. d3 {[%clk 01:30:38]} {[%emt 00:00:39]} Qa5+
{[%clk 01:32:02]} {[%emt 00:00:10]} 5. Nc3 {[%clk 01:30:55]} {[%emt 00:00:13]}
Nd4 {[%clk 01:32:25]} {[%emt 00:00:06]} 6. Bc4 {[%clk 01:30:08]} {[%emt
00:01:17]} b5 {[%clk 01:31:55]} {[%emt 00:01:01]} 7. Bb3 {[%clk 01:25:18]}
{[%emt 00:05:20]} Nxb3 {[%clk 01:29:30]} {[%emt 00:02:55]} 8. cxb3 {[%clk
01:25:33]} {[%emt 00:00:15]} e6 {[%clk 01:24:04]} {[%emt 00:05:56]} 9. e5
{[%clk 01:16:26]} {[%emt 00:09:36]} Nd5 {[%clk 01:24:20]} {[%emt 00:00:14]} 10.
Bd2 {[%clk 01:16:37]} {[%emt 00:00:20]} Nxc3 {[%clk 01:24:11]} {[%emt
00:00:39]} 11. bxc3 {[%clk 01:16:26]} {[%emt 00:00:40]} Bb7 {[%clk 01:14:04]}
{[%emt 00:10:36]} 12. O-O {[%clk 01:12:14]} {[%emt 00:04:36]} Be7 {[%clk
01:06:52]} {[%emt 00:07:49]} 13. c4 {[%clk 01:03:33]} {[%emt 00:09:11]} Qb6
{[%clk 01:04:57]} {[%emt 00:02:26]} 14. Qe2 {[%clk 00:59:27]} {[%emt 00:04:36]}
O-O {[%clk 00:58:44]} {[%emt 00:06:42]} 15. Bc3 {[%clk 00:55:21]} {[%emt
00:04:37]} f6 {[%clk 00:44:31]} {[%emt 00:14:43]} 16. Nd2 {[%clk 00:47:58]}
{[%emt 00:07:53]} Qc6 {[%clk 00:36:37]} {[%emt 00:08:24]} 17. f3 {[%clk
00:45:39]} {[%emt 00:02:49]} b4 {[%clk 00:30:28]} {[%emt 00:06:39]} 18. Bb2
{[%clk 00:45:54]} {[%emt 00:00:15]} f5 {[%clk 00:30:09]} {[%emt 00:00:49]} 19.
a3 {[%clk 00:41:38]} {[%emt 00:04:46]} a5 {[%clk 00:28:13]} {[%emt 00:02:25]}
20. Rad1 {[%clk 00:32:44]} {[%emt 00:09:24]} Kh8 {[%clk 00:26:11]} {[%emt
00:02:33]} 21. Nb1 {[%clk 00:31:41]} {[%emt 00:01:33]} Rg8 {[%clk 00:23:05]}
{[%emt 00:03:35]} 22. a4 {[%clk 00:29:10]} {[%emt 00:03:02]} g5 {[%clk
00:21:37]} {[%emt 00:01:58]} 23. d4 {[%clk 00:28:32]} {[%emt 00:01:08]} cxd4
{[%clk 00:21:24]} {[%emt 00:00:42]} 24. Bxd4 {[%clk 00:28:55]} {[%emt
00:00:08]} g4 {[%clk 00:19:51]} {[%emt 00:02:03]} 25. Nd2 {[%clk 00:27:16]}
{[%emt 00:02:09]} Bg5 {[%clk 00:16:22]} {[%emt 00:03:59]} 26. f4 {[%clk
00:25:53]} {[%emt 00:01:53]} Be7 {[%clk 00:16:24]} {[%emt 00:00:28]} 27. Rfe1
{[%clk 00:24:33]} {[%emt 00:01:50]} Rg6 {[%clk 00:16:06]} {[%emt 00:00:48]} 28.
Nf1 {[%clk 00:23:58]} {[%emt 00:01:04]} Bh4 {[%clk 00:13:42]} {[%emt 00:02:54]}
29. Ng3 {[%clk 00:22:55]} {[%emt 00:01:33]} Bxg3 {[%clk 00:13:29]} {[%emt
00:00:43]} 30. hxg3 {[%clk 00:23:24]} {[%emt 00:00:01]} h5 {[%clk 00:12:53]}
{[%emt 00:01:07]} 31. Be3 {[%clk 00:21:06]} {[%emt 00:02:47]} Rh6 {[%clk
00:11:07]} {[%emt 00:02:17]} 32. Rd6 {[%clk 00:20:07]} {[%emt 00:01:30]} Qc8
{[%clk 00:10:38]} {[%emt 00:00:58]} 33. Red1 {[%clk 00:19:29]} {[%emt
00:01:08]} Bc6 {[%clk 00:10:28]} {[%emt 00:00:40]} 34. Bf2 {[%clk 00:18:57]}
{[%emt 00:01:01]} Qb7 {[%clk 00:09:36]} {[%emt 00:01:23]} 35. Be3 {[%clk
00:18:17]} {[%emt 00:01:10]} h4 {[%clk 00:08:48]} {[%emt 00:01:18]} 36. gxh4
{[%clk 00:16:58]} {[%emt 00:01:49]} Rxh4 {[%clk 00:08:52]} {[%emt 00:00:26]} 37.
Qf2 {[%clk 00:16:42]} {[%emt 00:00:46]} Rh5 {[%clk 00:09:02]} {[%emt 00:00:20]}
38. Qg3 {[%clk 00:14:58]} {[%emt 00:02:13]} Kg7 {[%clk 00:08:28]} {[%emt
00:01:04]} 39. Kf2 {[%clk 00:14:09]} {[%emt 00:01:19]} Rah8 {[%clk 00:08:45]}
{[%emt 00:00:13]} 40. Kf1 {[%clk 00:11:48]} {[%emt 00:02:51]} Rh1+ {[%clk
00:08:02]} {[%emt 00:01:13]} 41. Bg1 {[%clk 00:12:09]} {[%emt 00:00:09]} Qa7
{[%clk 00:06:49]} {[%emt 00:01:44]} 42. Qf2 {[%clk 00:11:04]} {[%emt 00:01:34]}
Qb7 {[%clk 00:06:39]} {[%emt 00:00:41]} 43. Ke2 {[%clk 00:08:06]} {[%emt
00:03:27]} Kg6 {[%clk 00:05:59]} {[%emt 00:01:10]} 44. Qb6 {[%clk 00:05:42]}
{[%emt 00:02:54]} Bf3+ {[%clk 00:03:44]} {[%emt 00:02:46]} 45. gxf3 {[%clk
00:04:45]} {[%emt 00:01:27]} Qxf3+ {[%clk 00:04:08]} {[%emt 00:00:06]} 46. Kd2
{[%clk 00:04:39]} {[%emt 00:00:35]} R8h2+ {[%clk 00:04:20]} {[%emt 00:00:18]}
47. Bxh2 {[%clk 00:03:55]} {[%emt 00:01:14]} Rxd1+ {[%clk 00:04:10]} {[%emt
00:00:41]} 48. Kc2 {[%clk 00:04:24]} {[%emt 00:00:01]} Qe2+ {[%clk 00:04:32]}
{[%emt 00:00:08]} 0-1